bitfinex/quotes_SOLUSD_20220210
["timestamp","ask_amount","ask_price","bid_price","bid_amount"]
[1644492742804,30.0,114.52,114.46,25.8462]
[1644492743204,22.79827525,114.51,114.46,25.8462]
[1644492743403,22.79827525,114.51,114.46,12.74]
[1644492743603,27.16527525,114.51,114.44,25.848]
[1644492743806,22.82227525,114.51,114.44,25.848]
[1644492744407,22.82227525,114.51,114.44,69.49261763]
[1644492744604,22.82227525,114.51,114.44,25.848]
[1644492745608,22.82227525,114.51,114.43,17.4771]
[1644492745808,4.391,114.5,114.43,13.1101]
[1644492746007,7.89736098,114.49,114.43,15.00695664]
[1644492746408,7.92136098,114.49,114.43,15.00695664]
[1644492746608,0.024,114.51,114.43,58.67158378]
[1644492746810,4.391,114.51,114.43,71.41158378]
[1644492747109,0.024,114.5,114.43,71.66158378]
[1644492747308,0.024,114.5,114.45,13.1076]
[1644492747511,0.024,114.51,114.45,13.1076]
[1644492747708,43.1084,114.52,114.45,13.1076]
[1644492747910,4.367,114.51,114.43,14.63685664]
[1644492748118,4.391,114.51,114.43,14.63685664]
[1644492748317,0.024,114.5,114.43,14.63685664]
[1644492748517,29.78905001,114.5,114.43,14.63685664]
[1644492748717,29.76505001,114.5,114.43,12.74]
[1644492748920,4.368,114.49,114.43,12.74]
[1644492749320,4.392,114.49,114.43,12.74]
[1644492749716,0.93058622,114.48,114.43,12.74]
[1644492752022,17.4799,114.49,114.43,12.74]
[1644492752222,13.1342,114.51,114.43,25.8502]
[1644492752420,0.024,114.5,114.43,25.8502]
[1644492752622,0.024,114.5,114.43,27.74705664]
[1644492752820,0.024,114.5,114.43,27.99705664]
[1644492753024,0.024,114.51,114.44,46.39083079]
[1644492753223,0.024,114.51,114.45,13.1075]
[1644492754029,54.07527376,114.52,114.45,13.1075]
[1644492754229,0.024,114.51,114.45,13.1075]
[1644492754430,4.367,114.51,114.45,13.1075]
[1644492754627,6.62036247,114.5,114.45,13.1075]
[1644492754828,6.62036247,114.5,114.44,25.8492]
[1644492755028,6.64436247,114.5,114.44,12.74]
[1644492755752,19.75496247,114.5,114.44,12.74]
[1644492755953,19.75496247,114.5,114.44,25.8494]
[1644492756151,19.75496247,114.5,114.44,13.1094]
[1644492756750,13.1346,114.5,114.44,13.1094]
[1644492756955,0.024,114.5,114.45,14.63685664]
[1644492757152,0.024,114.51,114.46,17.7846875]
[1644492757350,30.0,114.52,114.47,12.74]
[1644492757752,23.68159453,114.51,114.45,12.74]
[1644492757951,23.70559453,114.51,114.45,12.74]
[1644492758152,34.61059453,114.51,114.42,14.63685664]
[1644492758353,4.392,114.5,114.41,13.1106]
[1644492758552,4.392,114.5,114.4,136.9878]
[1644492758752,0.024,114.5,114.4,136.9878]
[1644492758953,0.024,114.5,114.4,22.6878]
[1644492759153,0.024,114.5,114.41,45.52887851]
[1644492759955,0.024,114.5,114.41,68.59973515]
[1644492760157,0.024,114.51,114.41,68.91010215]
[1644492760356,0.024,114.51,114.42,13.81412741]
[1644492760558,0.024,114.51,114.43,12.74]
[1644492760855,0.024,114.51,114.44,43.80127006]
[1644492761054,0.024,114.51,114.45,12.74]
[1644492761255,54.29708854,114.52,114.45,12.74]
[1644492761455,0.024,114.51,114.43,12.74]
[1644492761655,4.367,114.5,114.42,24.0126]
[1644492761855,0.024,114.5,114.42,28.3806]
[1644492762058,4.368,114.49,114.42,24.0126]
[1644492762255,0.024,114.5,114.43,37.32072304]
[1644492762456,0.024,114.51,114.44,13.1078]
[1644492763057,0.024,114.51,114.45,12.74]
[1644492763257,30.0,114.52,114.45,51.21150038]
[1644492763456,0.024,114.51,114.45,51.21150038]
[1644492763657,51.54745836,114.52,114.45,51.21150038]
[1644492763857,55.91445836,114.52,114.45,51.21150038]
[1644492764457,34.367,114.52,114.45,51.21150038]
[1644492764662,34.367,114.52,114.45,64.31800038]
[1644492764859,30.0,114.52,114.45,64.56800038]
[1644492765057,4.367,114.55,114.5,0.30006157]
[1644492765259,0.926,114.58,114.5,0.30006157]
[1644492765458,32.45969701,114.57,114.5,0.30006157]
[1644492765659,4.365,114.57,114.5,0.30006157]
[1644492765860,4.365,114.57,114.5,13.1005]
[1644492766259,4.365,114.57,114.49,12.74]
[1644492766460,6.85939509,114.57,114.47,60.4313]
[1644492766659,30.45609509,114.57,114.47,60.4313]
[1644492766860,0.5,114.5,114.47,60.6813]
[1644492767060,0.5,114.5,114.48,6.06439994]
[1644492767263,0.5,114.5,114.49,34.85517013]
[1644492767460,0.5,114.5,114.48,6.06439994]
[1644492767861,0.5,114.5,114.48,19.16719994]
[1644492768460,0.5,114.5,114.49,40.18094516]
[1644492768664,0.0001,114.5,114.48,19.16719994]
[1644492768862,0.0001,114.5,114.48,19.41719994]
[1644492769061,0.0001,114.5,114.49,12.74]
[1644492769461,0.0001,114.5,114.49,35.6689]
[1644492769865,0.0001,114.5,114.49,35.9189]
[1644492771161,0.0001,114.5,114.49,35.6689]
[1644492771363,5.61040322,114.57,114.49,42.48767727]
[1644492771563,4.367,114.57,114.54,0.32374007]
[1644492771762,0.926,114.58,114.55,6.06439994]
[1644492772165,0.926,114.58,114.54,36.87234211]
[1644492772367,0.926,114.58,114.51,12.74]
[1644492772565,4.365,114.57,114.51,12.74]
[1644492772767,0.926,114.58,114.51,12.74]
[1644492773370,2.16940322,114.58,114.52,44.07687326]
[1644492773569,4.364,114.57,114.52,44.07687326]
[1644492773769,0.926,114.58,114.52,44.07687326]
[1644492774807,0.926,114.58,114.52,56.81687326]
[1644492775395,22.08530763,114.58,114.52,56.81687326]
[1644492775600,0.426,114.58,114.52,12.74]
[1644492775796,4.364,114.57,114.52,12.74]
[1644492776396,1.66940322,114.58,114.52,12.74]
[1644492776595,0.426,114.58,114.53,34.47930068]
[1644492777598,0.426,114.58,114.52,12.74]
[1644492777599,4.79,114.58,114.52,12.74]
[1644492777798,0.426,114.58,114.52,12.74]
[1644492778000,4.79,114.58,114.52,12.74]
[1644492778598,0.426,114.58,114.52,12.74]
[1644492779398,0.426,114.58,114.53,44.37527174]
[1644492780202,0.426,114.58,114.52,12.74]
[1644492780602,0.45,114.58,114.52,12.74]
[1644492780900,0.45,114.58,114.52,25.8388]
[1644492781100,0.45,114.58,114.52,72.65414072]
[1644492781301,0.45,114.58,114.52,72.90414072]
[1644492781701,0.426,114.58,114.52,74.80099736]
[1644492782001,0.426,114.58,114.52,79.16499736]
[1644492783302,0.426,114.58,114.52,72.90414072]
[1644492783503,4.388,114.61,114.52,74.80099736]
[1644492783702,0.024,114.61,114.53,4.364]
[1644492783914,1.24340322,114.63,114.55,13.0939]
[1644492783915,1.26740322,114.63,114.55,13.0939]
[1644492784102,12.74,114.71,114.55,22.92368659]
[1644492784103,0.024,114.6,114.55,22.92368659]
[1644492784301,1.24340322,114.65,114.56,62.40995664]
[1644492784502,1.24340322,114.67,114.59,0.31401703]
[1644492784704,6.55167727,114.73,114.61,0.30616596]
[1644492784903,51.24297363,114.74,114.63,13.0855]
[1644492784904,1.2373743,114.72,114.63,13.0855]
[1644492785102,1.2373743,114.72,114.68,0.30524717]
[1644492785307,2.03681834,114.75,114.68,11.65924717]
[1644492785604,2.03681834,114.75,114.69,49.77900535]
[1644492785805,1.23702459,114.75,114.7,12.74]
[1644492786006,1.67483711,114.76,114.7,25.8173]
[1644492786402,0.43781252,114.76,114.7,25.8173]
[1644492786603,0.43781252,114.76,114.7,12.74]
[1644492786805,4.358,114.75,114.7,12.74]
[1644492787603,33.55495595,114.74,114.67,12.74]
[1644492787802,33.55495595,114.74,114.65,36.49219947]
[1644492787803,33.55495595,114.74,114.68,12.74]
[1644492788604,4.358,114.75,114.68,12.74]
[1644492788803,0.43781252,114.76,114.68,12.74]
[1644492788804,4.79581252,114.76,114.68,12.74]
[1644492789005,0.43781252,114.76,114.69,4.358]
[1644492789203,0.43781252,114.76,114.69,17.098]
[1644492789404,0.43781252,114.76,114.69,25.8178]
[1644492789605,0.43781252,114.76,114.7,47.52142596]
[1644492790006,0.43781252,114.76,114.7,60.26142596]
[1644492790209,0.43781252,114.76,114.7,60.51142596]
[1644492790519,0.43781252,114.76,114.7,17.098]
[1644492790708,4.358,114.75,114.68,12.74]
[1644492790909,0.43781252,114.76,114.68,12.74]
[1644492791115,4.358,114.75,114.68,12.74]
[1644492791309,24.89434702,114.75,114.68,50.60075662]
[1644492791715,0.43781252,114.76,114.68,50.60075662]
[1644492792114,0.43781252,114.76,114.69,1.89186444]
[1644492792313,0.43781252,114.76,114.7,17.098]
[1644492792516,0.43781252,114.76,114.7,12.74]
[1644492792912,0.43781252,114.76,114.7,53.10973819]
[1644492793914,0.43781252,114.76,114.71,4.358]
[1644492794314,4.358,114.82,114.71,17.098]
[1644492794514,4.358,114.82,114.71,29.15178824]
[1644492794714,4.358,114.82,114.76,0.31613752]
[1644492794918,4.355,114.85,114.76,13.05613752]
[1644492795119,43.5838,114.86,114.76,13.05613752]
[1644492795120,47.47749272,114.86,114.77,35.16976377]
[1644492795315,25.35455194,114.84,114.76,1.87878824]
[1644492795513,4.355,114.83,114.75,12.74]
[1644492795716,17.43,114.83,114.75,12.74]
[1644492796315,8.26726298,114.82,114.75,12.74]
[1644492796518,13.075,114.83,114.75,12.74]
[1644492796921,17.4276,114.85,114.75,12.74]
[1644492797116,17.4276,114.85,114.76,4.355]
[1644492797316,13.0726,114.85,114.76,17.095]
[1644492797516,31.13165037,114.84,114.76,12.74]
[1644492797717,4.355,114.83,114.76,12.74]
[1644492797917,4.355,114.83,114.73,12.74]
[1644492798118,33.36287191,114.84,114.74,13.05915273]
[1644492798319,4.355,114.86,114.74,13.05915273]
[1644492798518,4.355,114.86,114.75,4.355]
[1644492798716,4.355,114.86,114.74,13.05915273]
[1644492798717,2.23122154,114.86,114.74,0.31915273]
[1644492798917,4.355,114.85,114.73,12.74]
[1644492799318,27.15382895,114.84,114.74,45.37761799]
[1644492799517,19.54408597,114.82,114.73,12.74]
[1644492799817,4.38,114.81,114.73,12.74]
[1644492800016,0.024,114.8,114.73,12.74]
[1644492800618,0.024,114.8,114.73,47.19181746]
[1644492800817,0.024,114.81,114.73,47.19181746]
[1644492801219,17.26231824,114.88,114.74,4.356]
[1644492801220,4.38,114.84,114.74,4.356]
[1644492801420,0.024,114.8,114.75,12.74]
[1644492801620,0.024,114.83,114.75,14.60615139]
[1644492801821,0.024,114.85,114.75,14.60615139]
[1644492802019,0.024,114.82,114.76,51.64581789]
[1644492802220,4.379,114.84,114.76,1.86615139]
[1644492802420,0.024,114.83,114.76,4.355]
[1644492802621,4.379,114.84,114.75,12.74]
[1644492802819,1.23702459,114.89,114.81,0.30673855]
[1644492803123,0.024,114.88,114.82,12.74]
[1644492803320,4.378,114.93,114.82,12.74]
[1644492803522,3.878,114.93,114.8,12.74]
[1644492803718,25.68324018,114.92,114.8,12.74]
[1644492803920,17.4451,114.91,114.77,4.352]
[1644492804120,17.4451,114.91,114.72,4.353]
[1644492804121,0.45,114.9,114.72,4.353]
[1644492804318,0.45,114.9,114.72,48.2016]
[1644492804319,6.06602459,114.89,114.72,48.2016]
[1644492804519,0.474,114.88,114.73,12.74]
[1644492804720,6.04202459,114.87,114.73,12.74]
[1644492804920,26.89626477,114.86,114.72,42.69023408]
[1644492805121,17.095,114.85,114.71,12.74]
[1644492805321,42.21192154,114.85,114.71,12.74]
[1644492805621,2.23122154,114.84,114.71,12.74]
[1644492805822,17.096,114.83,114.69,12.74]
[1644492806026,7.96257474,114.82,114.66,4.356]
[1644492806222,25.65924018,114.8,114.65,47.17317027]
[1644492806422,7.96257474,114.78,114.64,12.74]
[1644492806623,4.808,114.77,114.64,12.74]
[1644492806823,24.766,114.77,114.61,12.74]
[1644492807023,26.99722154,114.77,114.61,12.74]
[1644492807424,25.65924018,114.76,114.62,45.29060242]
[1644492807623,17.099,114.75,114.62,45.29060242]
[1644492807822,7.96257474,114.74,114.62,45.29060242]
[1644492808033,4.359,114.73,114.62,45.29060242]
[1644492808225,24.28319338,114.72,114.62,45.29060242]
[1644492808723,24.28319338,114.72,114.6,84.7391]
[1644492808925,13.0904,114.7,114.6,84.7391]
[1644492809224,23.9904,114.7,114.6,36.3352]
[1644492809623,23.9904,114.7,114.6,12.74]
[1644492809823,13.69962154,114.69,114.6,12.74]
[1644492810022,13.69962154,114.69,114.58,4.36]
[1644492810023,22.43022154,114.69,114.58,14.83]
[1644492810225,4.361,114.68,114.58,14.83]
[1644492810424,4.361,114.68,114.55,10.47]
[1644492810825,10.47,114.67,114.53,4.362]
[1644492811027,4.363,114.66,114.54,48.25979515]
[1644492811225,37.37909338,114.66,114.54,48.25979515]
[1644492811629,9.33862154,114.64,114.54,48.25979515]
[1644492813029,4.363,114.63,114.54,48.25979515]
[1644492813228,10.808,114.63,114.54,48.25979515]
[1644492813427,10.808,114.63,114.54,58.72979515]
[1644492813630,10.808,114.63,114.54,10.47]
[1644492813833,10.808,114.63,114.53,4.363]
[1644492814031,4.363,114.62,114.51,14.833]
[1644492814231,4.363,114.62,114.51,10.47]
[1644492814430,4.363,114.62,114.48,4.364]
[1644492814630,44.66493328,114.61,114.49,58.62843943]
[1644492814829,4.364,114.6,114.49,58.62843943]
[1644492815129,13.1008,114.61,114.49,58.62843943]
[1644492815359,4.364,114.63,114.49,58.62843943]
[1644492815534,4.364,114.64,114.49,58.62843943]
[1644492815729,13.0988,114.63,114.49,58.62843943]
[1644492815930,25.70705881,114.61,114.49,58.62843943]
[1644492816132,9.82,114.63,114.49,58.62843943]
[1644492816133,7.91475611,114.59,114.49,58.62843943]
[1644492816330,4.365,114.62,114.49,58.62843943]
[1644492816637,4.364,114.63,114.49,58.62843943]
[1644492816831,48.0355,114.64,114.5,4.364]
[1644492817032,48.0355,114.64,114.5,14.834]
[1644492817330,46.44296046,114.63,114.51,35.74384053]
[1644492817531,46.44296046,114.63,114.53,38.90964627]
[1644492817731,43.6602,114.67,114.58,0.30835988]
[1644492817931,73.83192459,114.71,114.58,10.77835988]
[1644492818132,4.361,114.7,114.58,10.77835988]
[1644492818331,17.4533,114.7,114.58,10.77835988]
[1644492818734,30.81673944,114.69,114.59,41.90323308]
[1644492819034,30.81673944,114.69,114.55,13.092]
[1644492819035,4.361,114.68,114.55,4.361]
[1644492819231,10.494,114.67,114.52,24.1939]
[1644492819431,0.024,114.66,114.52,34.6639]
[1644492819834,0.024,114.67,114.56,0.32422722]
[1644492820036,0.024,114.65,114.58,0.31215806]
[1644492820231,0.024,114.7,114.62,0.31435611]
[1644492820436,0.024,114.72,114.63,10.47]
[1644492820633,0.024,114.69,114.59,1.87747235]
[1644492820837,4.361,114.68,114.6,35.64949422]
[1644492821032,4.385,114.68,114.6,35.64949422]
[1644492821230,2.23122154,114.72,114.6,35.64949422]
[1644492821231,0.024,114.67,114.6,35.64949422]
[1644492821435,0.024,114.7,114.6,35.64949422]
[1644492821631,4.361,114.71,114.6,35.64949422]
[1644492821632,0.024,114.66,114.6,35.64949422]
[1644492821831,0.024,114.69,114.6,46.11949422]
[1644492822033,4.361,114.68,114.6,46.11949422]
[1644492822231,0.024,114.68,114.6,46.11949422]
[1644492822434,4.385,114.67,114.6,46.11949422]
[1644492822632,0.024,114.66,114.6,46.11949422]
[1644492823039,4.385,114.72,114.6,46.11949422]
[1644492823532,2.41083121,114.69,114.6,35.64949422]
[1644492823732,31.21098371,114.67,114.6,35.64949422]
[1644492823936,4.385,114.66,114.6,35.64949422]
[1644492824136,0.024,114.67,114.6,35.64949422]
[1644492824333,4.361,114.66,114.6,35.64949422]
[1644492824533,0.024,114.66,114.6,35.64949422]
[1644492824833,13.0964,114.66,114.6,35.64949422]
[1644492825033,13.1204,114.66,114.6,35.64949422]
[1644492825235,13.0964,114.66,114.6,35.64949422]
[1644492825436,0.024,114.66,114.6,35.64949422]
[1644492826134,13.0938,114.68,114.6,35.64949422]
[1644492826336,4.385,114.67,114.6,35.64949422]
[1644492826539,0.024,114.66,114.6,35.64949422]
[1644492826736,4.385,114.67,114.6,35.64949422]
[1644492826935,3.83080569,114.66,114.6,35.64949422]
[1644492827136,0.024,114.67,114.6,35.64949422]
[1644492827335,4.361,114.66,114.6,35.64949422]
[1644492827534,0.024,114.67,114.6,35.64949422]
[1644492827535,4.385,114.67,114.6,35.64949422]
[1644492827735,13.0912,114.7,114.6,35.64949422]
[1644492827935,0.024,114.66,114.6,35.64949422]
[1644492828135,37.47063521,114.69,114.6,35.64949422]
[1644492828535,0.024,114.69,114.6,35.64949422]
[1644492828738,0.024,114.69,114.6,46.11949422]
[1644492829240,1.23702459,114.78,114.65,0.3078241]
[1644492829437,4.358,114.77,114.66,10.47]
[1644492829736,31.38727428,114.76,114.67,37.0774831]
[1644492829936,31.38727428,114.76,114.67,47.5474831]
[1644492830360,4.358,114.75,114.67,47.5474831]
[1644492830637,4.358,114.75,114.64,34.84]
[1644492830937,4.358,114.75,114.6,137.18694207]
[1644492830938,33.61849582,114.76,114.63,10.47]
[1644492831136,33.61849582,114.76,114.62,52.2367]
[1644492831137,2.23122154,114.74,114.62,52.2367]
[1644492831337,2.23122154,114.74,114.62,4.358]
[1644492831536,6.59354064,114.73,114.62,4.358]
[1644492831739,26.29654064,114.73,114.63,41.12442746]
[1644492831938,13.0912,114.71,114.63,41.12442746]
[1644492832136,27.10742855,114.71,114.63,41.12442746]
[1644492832736,27.10742855,114.71,114.62,4.358]
[1644492832938,4.36,114.7,114.61,10.47]
[1644492833337,4.36,114.7,114.59,10.47]
[1644492833838,6.51438637,114.69,114.6,38.75364433]
[1644492834037,15.52138637,114.69,114.6,38.75364433]
[1644492834240,24.2092067,114.67,114.6,38.75364433]
[1644492834441,5.59802459,114.71,114.6,38.75364433]
[1644492834638,1.23702459,114.71,114.65,0.31161387]
[1644492834838,1.23702459,114.72,114.66,10.47]
[1644492835039,1.23702459,114.76,114.66,12.35913326]
[1644492835238,4.358,114.75,114.66,12.35913326]
[1644492835442,28.60329128,114.74,114.66,10.47]
[1644492835640,5.59602459,114.73,114.63,1.88913326]
[1644492835843,1.23702459,114.71,114.64,10.47]
[1644492836041,1.23702459,114.72,114.64,10.47]
[1644492836247,4.359,114.71,114.64,10.47]
[1644492836543,5.01852364,114.7,114.62,10.47]
[1644492836743,5.01852364,114.7,114.63,46.68209172]
[1644492837342,5.01852364,114.7,114.62,10.47]
[1644492837743,4.36,114.69,114.62,10.47]
[1644492838349,28.60329128,114.68,114.62,10.47]
[1644492838748,1.23702459,114.71,114.62,46.99900268]
[1644492838950,14.32722459,114.72,114.62,46.99900268]
[1644492839352,1.23702459,114.71,114.62,46.99900268]
[1644492839750,51.5095,114.73,114.62,46.99900268]
[1644492839751,4.36,114.73,114.62,47.24900268]
[1644492839952,6.00002972,114.75,114.67,0.31606123]
[1644492840150,6.00002972,114.75,114.68,10.47]
[1644492840351,6.00002972,114.75,114.68,12.3554]
[1644492840551,4.358,114.79,114.7,0.30310149]
[1644492840752,3.69517363,114.85,114.71,10.47]
[1644492840952,4.356,114.84,114.71,10.47]
[1644492841151,4.55324483,114.82,114.71,10.47]
[1644492841351,4.356,114.81,114.71,10.47]
[1644492841555,27.70642403,114.8,114.71,48.28340481]
[1644492841755,30.18223134,114.8,114.68,10.47]
[1644492841959,27.70642403,114.8,114.71,1.8854]
[1644492842155,27.70642403,114.8,114.72,10.47]
[1644492842554,27.70642403,114.8,114.72,12.3554]
[1644492842755,27.70642403,114.8,114.72,10.47]
[1644492842954,5.91539089,114.78,114.72,10.47]
[1644492843361,4.357,114.81,114.72,10.47]
[1644492844357,13.0778,114.83,114.73,42.70459344]
[1644492844563,47.29197363,114.85,114.78,0.3172404]
[1644492844564,3.69517363,114.85,114.78,0.3172404]
[1644492844757,0.024,114.82,114.78,10.7872404]
[1644492844958,1.991,114.86,114.78,10.47]
[1644492845158,1.991,114.86,114.75,10.47]
[1644492845373,16.40519379,114.85,114.75,10.47]
[1644492845572,0.024,114.84,114.75,48.56461197]
[1644492846877,0.024,114.84,114.75,10.47]
[1644492847876,13.1008,114.84,114.75,10.47]
[1644492848076,7.61472251,114.83,114.75,10.47]
[1644492849480,5.60672251,114.83,114.75,10.47]
[1644492849686,3.69517363,114.89,114.77,0.31256082]
[1644492849981,0.024,114.88,114.78,10.47]
[1644492850182,0.024,114.89,114.78,12.3554]
[1644492850382,0.024,114.87,114.78,12.3554]
[1644492850581,12.77215647,114.91,114.79,44.57778062]
[1644492850783,1.16283594,114.88,114.8,10.47]
[1644492850981,0.024,114.87,114.8,10.47]
[1644492852084,0.024,114.87,114.78,10.47]
[1644492852288,11.9342406,114.86,114.78,10.47]
[1644492853084,2.008,114.87,114.79,42.99639965]
[1644492853285,13.0717,114.88,114.79,4.354]
[1644492853486,0.024,114.87,114.79,4.354]
[1644492853686,0.024,114.87,114.78,10.47]
[1644492853984,2.036,114.87,114.78,10.47]
[1644492854186,12.40507191,114.86,114.78,10.47]
[1644492855691,33.57397191,114.86,114.78,10.47]
[1644492855889,33.57397191,114.86,114.76,14.824]
[1644492857093,2.008,114.85,114.76,10.47]
[1644492857292,2.008,114.85,114.73,10.47]
[1644492857491,13.0773,114.83,114.71,14.825]
[1644492857790,1.5299205,114.81,114.71,10.47]
[1644492857992,12.3942636,114.79,114.71,10.47]
[1644492858192,23.6582636,114.79,114.72,37.70521832]
[1644492858390,23.6582636,114.79,114.71,10.47]
[1644492858592,23.6582636,114.79,114.72,4.357]
[1644492858793,23.6582636,114.79,114.71,10.47]
[1644492859794,36.7395636,114.79,114.71,10.47]
[1644492861595,25.4755636,114.79,114.71,10.47]
[1644492863699,25.4755636,114.79,114.69,44.77520449]
[1644492864497,25.4755636,114.79,114.69,10.47]
[1644492864698,33.7955636,114.79,114.69,10.47]
[1644492865097,33.7955636,114.79,114.67,69.3656]
[1644492865098,13.0841,114.76,114.67,69.3656]
[1644492865297,1.964,114.75,114.67,45.5289]
[1644492865498,1.54072881,114.74,114.67,45.5289]
[1644492865698,1.56472881,114.74,114.67,45.5289]
[1644492865900,1.54072881,114.74,114.67,45.5289]
[1644492867903,15.0966,114.75,114.67,45.5289]
[1644492868102,13.1096,114.75,114.67,45.5289]
[1644492868302,0.024,114.75,114.67,45.5289]
[1644492868509,13.107,114.77,114.68,10.47]
[1644492868703,0.024,114.75,114.68,10.47]
[1644492868903,10.01372059,114.77,114.68,10.47]
[1644492869304,10.01372059,114.77,114.67,45.5289]
[1644492869504,13.0852,114.75,114.67,45.5289]
[1644492869706,13.1092,114.75,114.67,45.5289]
[1644492869905,13.0852,114.75,114.67,45.5289]
[1644492870305,3.94527182,114.74,114.67,45.5289]
[1644492870507,3.94527182,114.74,114.66,50.41141348]
[1644492870904,13.0864,114.74,114.66,50.41141348]
[1644492871105,0.024,114.76,114.66,67.51736315]
[1644492871907,0.024,114.76,114.66,67.26736315]
[1644492872105,1.68305751,114.75,114.66,10.47]
[1644492872305,0.024,114.75,114.66,10.47]
[1644492872505,0.024,114.77,114.67,4.359]
[1644492872710,0.024,114.78,114.68,10.47]
[1644492872913,0.024,114.76,114.68,12.36118194]
[1644492873108,2.49849612,114.81,114.68,10.47]
[1644492873307,0.024,114.76,114.69,46.46624154]
[1644492873508,11.57250812,114.8,114.7,10.47]
[1644492873707,0.024,114.76,114.7,10.47]
[1644492873907,0.024,114.79,114.7,10.47]
[1644492874111,0.024,114.77,114.7,10.47]
[1644492874308,0.024,114.77,114.68,23.0375]
[1644492874309,0.024,114.79,114.68,33.5075]
[1644492874508,0.024,114.77,114.68,23.0375]
[1644492874709,2.41048429,114.78,114.68,23.0375]
[1644492874908,0.024,114.77,114.68,23.0375]
[1644492875507,0.024,114.77,114.67,24.077]
[1644492875708,13.1068,114.77,114.68,37.79873165]
[1644492875909,0.024,114.77,114.68,48.26873165]
[1644492876510,0.024,114.77,114.68,50.15991359]
[1644492876910,0.024,114.79,114.68,73.64381359]
[1644492877110,0.024,114.77,114.68,78.25081359]
[1644492877412,0.024,114.79,114.68,78.25081359]
[1644492877712,0.024,114.77,114.68,91.33081359]
[1644492877915,0.024,114.78,114.68,91.33081359]
[1644492878110,0.024,114.77,114.68,91.33081359]
[1644492878313,0.024,114.78,114.68,91.33081359]
[1644492878511,0.024,114.79,114.68,91.33081359]
[1644492878710,24.3173,114.8,114.68,91.33081359]
[1644492878711,0.024,114.77,114.68,86.97381359]
[1644492878914,0.024,114.79,114.71,13.0767]
[1644492879132,0.024,114.77,114.73,38.23124136]
[1644492879317,0.024,114.79,114.73,38.23124136]
[1644492879511,13.102,114.81,114.73,38.23124136]
[1644492879713,0.024,114.8,114.73,38.23124136]
[1644492879913,13.102,114.81,114.73,38.23124136]
[1644492880713,0.8906552,114.8,114.73,38.23124136]
[1644492880912,2.8206552,114.8,114.73,38.23124136]
[1644492881517,15.8990552,114.8,114.72,10.47]
[1644492881714,13.9930552,114.8,114.72,10.47]
[1644492884517,13.9930552,114.8,114.7,38.9692]
[1644492884717,13.0809,114.78,114.7,34.6132]
[1644492884918,13.1049,114.78,114.7,34.6132]
[1644492885119,12.84279319,114.77,114.7,34.6132]
[1644492886121,25.92469319,114.77,114.7,10.47]
[1644492886321,25.92469319,114.77,114.68,10.47]
[1644492886522,27.95769319,114.77,114.68,10.47]
[1644492886721,27.93369319,114.77,114.68,10.47]
[1644492886921,30.40829673,114.77,114.68,10.47]
[1644492887322,28.39929673,114.77,114.68,10.47]
[1644492888027,2.008,114.76,114.68,10.47]
[1644492888224,1.09219922,114.75,114.68,10.47]
[1644492888424,13.0848,114.74,114.68,10.47]
[1644492888824,2.47460354,114.77,114.68,10.47]
[1644492889024,0.024,114.78,114.68,14.828]
[1644492889025,2.47460354,114.78,114.68,14.828]
[1644492889324,0.024,114.78,114.68,14.828]
[1644492889727,13.0816,114.77,114.69,35.0755039]
[1644492889925,0.024,114.78,114.7,14.828]
[1644492890125,0.024,114.79,114.7,14.828]